[Event "Titled Tuesday Blitz August 02 Late 2022"]
[White "Swiercz, Dariusz"]
[Black "Sjugirov, Sanan"]
[WhiteFideId "1126881"]
[BlackFideId "4189302"]
[WhiteElo "2627"]
[BlackElo "2609"]
[Result "0-1"]
[Round "09"]
[TimeControl "180+1"]
[Date "2022.08.02"]
[WhiteClock "0:00:04"]
[BlackClock "0:00:05"]

1. Nf3 {[%clk 0:03:00]}  c5 {[%clk 0:02:56]} 2. c3 {[%clk 0:02:58]}  b6 {[%clk 0:02:33]} 3. d4 {[%clk 0:02:59]}  Bb7 {[%clk 0:02:33]} 4. Bf4 {[%clk 0:02:52]}  Nf6 {[%clk 0:02:32]} 5. e3 {[%clk 0:02:51]}  e6 {[%clk 0:02:30]} 6. h3 {[%clk 0:02:50]}  Be7 {[%clk 0:02:28]} 7. Bd3 {[%clk 0:02:50]}  cxd4 {[%clk 0:02:27]} 8. exd4 {[%clk 0:02:47]}  d6 {[%clk 0:02:26]} 9. O-O {[%clk 0:02:44]}  Nbd7 {[%clk 0:02:26]} 10. Bh2 {[%clk 0:02:43]}  O-O {[%clk 0:02:27]} 11. Nbd2 {[%clk 0:02:43]}  a6 {[%clk 0:02:25]} 12. a4 {[%clk 0:02:42]}  Re8 {[%clk 0:02:25]} 13. Re1 {[%clk 0:02:42]}  Qc7 {[%clk 0:02:25]} 14. Ng5 {[%clk 0:02:36]}  h6 {[%clk 0:02:18]} 15. Nge4 {[%clk 0:02:36]}  Nxe4 {[%clk 0:02:13]} 16. Nxe4 {[%clk 0:02:33]}  Nf6 {[%clk 0:02:10]} 17. Nxf6+ {[%clk 0:02:27]}  Bxf6 {[%clk 0:02:11]} 18. Qg4 {[%clk 0:02:27]}  Bc6 {[%clk 0:02:01]} 19. Bf4 {[%clk 0:02:24]}  Kf8 {[%clk 0:01:54]} 20. Qg3 {[%clk 0:02:15]}  e5 {[%clk 0:01:44]} 21. Be3 {[%clk 0:02:04]}  Qb7 {[%clk 0:01:36]} 22. Qg4 {[%clk 0:01:50]}  e4 {[%clk 0:01:26]} 23. Bc2 {[%clk 0:01:43]}  d5 {[%clk 0:01:25]} 24. f3 {[%clk 0:01:33]}  Qd7 {[%clk 0:00:27]} 25. Qg3 {[%clk 0:01:25]}  Qe7 {[%clk 0:00:21]} 26. Rf1 {[%clk 0:01:16]}  Bh4 {[%clk 0:00:20]} 27. Qg4 {[%clk 0:00:59]}  Bg5 {[%clk 0:00:18]} 28. Rae1 {[%clk 0:00:44]}  exf3 {[%clk 0:00:09]} 29. Rxf3 {[%clk 0:00:20]}  Bxe3+ {[%clk 0:00:09]} 30. Rfxe3 {[%clk 0:00:18]}  Qxe3+ {[%clk 0:00:10]} 31. Rxe3 {[%clk 0:00:19]}  Rxe3 {[%clk 0:00:11]} 32. Qf4 {[%clk 0:00:17]}  Re6 {[%clk 0:00:09]} 33. Bf5 {[%clk 0:00:14]}  Rf6 {[%clk 0:00:08]} 34. g4 {[%clk 0:00:15]}  Bxa4 {[%clk 0:00:07]} 35. Qc7 {[%clk 0:00:11]}  Kg8 {[%clk 0:00:05]} 36. h4 {[%clk 0:00:06]}  Rf8 {[%clk 0:00:04]} 37. h5 {[%clk 0:00:04]}  Bb5 {[%clk 0:00:03]} 38. Qb7 {[%clk 0:00:03]}  Bc4 {[%clk 0:00:03]} 39. Qc7 {[%clk 0:00:03]}  a5 {[%clk 0:00:03]} 40. Qd7 {[%clk 0:00:03]}  Ba6 {[%clk 0:00:02]} 41. Kg2 {[%clk 0:00:03]}  Bc8 {[%clk 0:00:03]} 42. Qxd5 {[%clk 0:00:04]}  Be6 {[%clk 0:00:03]} 43. Qe5 {[%clk 0:00:04]}  Bxf5 {[%clk 0:00:03]} 44. gxf5 {[%clk 0:00:05]}  Rd8 {[%clk 0:00:04]} 45. d5 {[%clk 0:00:05]}  Rfd6 {[%clk 0:00:04]} 46. c4 {[%clk 0:00:05]}  a4 {[%clk 0:00:05]} 47. Kf3 {[%clk 0:00:05]}  b5 {[%clk 0:00:05]} 48. c5 {[%clk 0:00:04]}  Rxd5 {[%clk 0:00:05]} 49. Qe7 {[%clk 0:00:04]}  Rxf5+ {[%clk 0:00:05]} 50. Kg4 {[%clk 0:00:04]}  Rg5+ {[%clk 0:00:05]} 51. Kf3 {[%clk 0:00:03]}  Rf5+ {[%clk 0:00:05]} 52. Ke4 {[%clk 0:00:03]}  Rfd5 {[%clk 0:00:05]} 53. c6 {[%clk 0:00:03]}  Rd4+ {[%clk 0:00:05]} 54. Ke3 {[%clk 0:00:03]}  Rd3+ {[%clk 0:00:06]} 55. Ke2 {[%clk 0:00:04]}  Rd2+ {[%clk 0:00:06]} 56. Ke3 {[%clk 0:00:05]}  R8d3+ {[%clk 0:00:05]} 57. Kf4 {[%clk 0:00:04]}  Rd4+ {[%clk 0:00:05]} 58. Ke3 {[%clk 0:00:04]}  R4d3+ {[%clk 0:00:05]} 59. Kf4 {[%clk 0:00:05]}  Rf2+ {[%clk 0:00:06]} 60. Kg4 {[%clk 0:00:05]}  f5+ {[%clk 0:00:05]} 61. Kh4 {[%clk 0:00:04]}  Rf4# {[%clk 0:00:05]} 0-1


[Site "https://www.chess.com"]

[Event "Titled Tuesday Blitz August 02 Late 2022"]
[White "Tanenbaum, Zachary"]
[Black "Vovk, Orest"]
[WhiteFideId "2060850"]
[BlackFideId "14113490"]
[WhiteElo "2175"]
[BlackElo "2203"]
[Result "0-1"]
[Round "09"]
[TimeControl "180+1"]
[Date "2022.08.02"]
[WhiteClock "0:00:02"]
[BlackClock "0:00:20"]

1. e4 {[%clk 0:03:00]}  g5 {[%clk 0:02:49]} 2. d4 {[%clk 0:03:00]}  h6 {[%clk 0:02:48]} 3. h4 {[%clk 0:03:00]}  g4 {[%clk 0:02:46]} 4. Qxg4 {[%clk 0:02:58]}  d5 {[%clk 0:02:46]} 5. Qf3 {[%clk 0:02:30]}  dxe4 {[%clk 0:02:47]} 6. Qxe4 {[%clk 0:02:30]}  Nf6 {[%clk 0:02:45]} 7. Qd3 {[%clk 0:02:28]}  Nc6 {[%clk 0:02:45]} 8. Nf3 {[%clk 0:02:25]}  Bg4 {[%clk 0:02:45]} 9. c3 {[%clk 0:02:26]}  Qd5 {[%clk 0:02:44]} 10. Bf4 {[%clk 0:02:18]}  O-O-O {[%clk 0:02:43]} 11. Nbd2 {[%clk 0:02:07]}  Rg8 {[%clk 0:02:29]} 12. Qb5 {[%clk 0:01:53]}  Qe6+ {[%clk 0:02:13]} 13. Ne5 {[%clk 0:01:41]}  Nd5 {[%clk 0:02:04]} 14. Bg3 {[%clk 0:01:07]}  f6 {[%clk 0:01:56]} 15. Ne4 {[%clk 0:01:07]}  a6 {[%clk 0:01:19]} 16. Qb3 {[%clk 0:00:44]}  Na5 {[%clk 0:01:06]} 17. Qa4 {[%clk 0:00:42]}  fxe5 {[%clk 0:01:02]} 18. Qxa5 {[%clk 0:00:42]}  exd4 {[%clk 0:01:00]} 19. f3 {[%clk 0:00:41]}  Bxf3 {[%clk 0:00:58]} 20. gxf3 {[%clk 0:00:38]}  Rxg3 {[%clk 0:00:58]} 21. Kf2 {[%clk 0:00:38]}  Rxf3+ {[%clk 0:00:51]} 22. Kxf3 {[%clk 0:00:37]}  Qf5+ {[%clk 0:00:49]} 23. Kg3 {[%clk 0:00:20]}  Qxe4 {[%clk 0:00:41]} 24. Bh3+ {[%clk 0:00:19]}  e6 {[%clk 0:00:35]} 25. Rae1 {[%clk 0:00:09]}  Bd6+ {[%clk 0:00:35]} 26. Kf2 {[%clk 0:00:08]}  Rf8+ {[%clk 0:00:27]} 27. Kg1 {[%clk 0:00:06]}  Rg8+ {[%clk 0:00:23]} 28. Kf2 {[%clk 0:00:03]}  Bg3+ {[%clk 0:00:21]} 29. Kf1 {[%clk 0:00:02]}  Qf3+ {[%clk 0:00:20]} 30. Kg1 {[%clk 0:00:02]}  Qf2# {[%clk 0:00:20]} 0-1


[Site "https://www.chess.com"]

[Event "Titled Tuesday Blitz August 02 Late 2022"]
[White "Vrbljanac, Aleksandar"]
[Black "Chiu, Isaac"]
[WhiteFideId "932817"]
[BlackFideId "30900654"]
[WhiteElo "2309"]
[BlackElo "2181"]
[Result "0-1"]
[Round "09"]
[TimeControl "180+1"]
[Date "2022.08.02"]
[WhiteClock "0:00:14"]
[BlackClock "0:00:18"]

1. e4 {[%clk 0:03:00]}  c6 {[%clk 0:01:51]} 2. Nf3 {[%clk 0:03:01]}  d5 {[%clk 0:01:51]} 3. Nc3 {[%clk 0:03:01]}  Nf6 {[%clk 0:01:50]} 4. e5 {[%clk 0:03:01]}  Ne4 {[%clk 0:01:50]} 5. Ne2 {[%clk 0:03:02]}  Qb6 {[%clk 0:01:49]} 6. d4 {[%clk 0:03:02]}  c5 {[%clk 0:01:39]} 7. c3 {[%clk 0:03:01]}  Nc6 {[%clk 0:01:33]} 8. Ng3 {[%clk 0:02:56]}  Nxg3 {[%clk 0:01:29]} 9. hxg3 {[%clk 0:02:57]}  Bg4 {[%clk 0:01:23]} 10. dxc5 {[%clk 0:02:48]}  Qxc5 {[%clk 0:01:21]} 11. Be3 {[%clk 0:02:48]}  Qa5 {[%clk 0:01:19]} 12. a4 {[%clk 0:02:33]}  e6 {[%clk 0:01:10]} 13. Bb5 {[%clk 0:02:27]}  a6 {[%clk 0:01:09]} 14. Bxc6+ {[%clk 0:02:23]}  bxc6 {[%clk 0:01:10]} 15. b4 {[%clk 0:02:13]}  Qc7 {[%clk 0:01:10]} 16. Qd4 {[%clk 0:02:12]}  Bxf3 {[%clk 0:01:04]} 17. gxf3 {[%clk 0:02:13]}  c5 {[%clk 0:01:04]} 18. bxc5 {[%clk 0:02:12]}  Rc8 {[%clk 0:01:04]} 19. Rb1 {[%clk 0:02:10]}  Be7 {[%clk 0:00:51]} 20. Rb6 {[%clk 0:01:22]}  O-O {[%clk 0:00:51]} 21. Rxa6 {[%clk 0:01:19]}  Bxc5 {[%clk 0:00:47]} 22. Qh4 {[%clk 0:01:08]}  h6 {[%clk 0:00:47]} 23. Bxh6 {[%clk 0:01:02]}  Qxe5+ {[%clk 0:00:38]} 24. Be3 {[%clk 0:01:00]}  f6 {[%clk 0:00:37]} 25. Qh7+ {[%clk 0:00:19]}  Kf7 {[%clk 0:00:36]} 26. Kf1 {[%clk 0:00:18]}  Bxe3 {[%clk 0:00:29]} 27. fxe3 {[%clk 0:00:18]}  Rc7 {[%clk 0:00:28]} 28. Kf2 {[%clk 0:00:13]}  Qxc3 {[%clk 0:00:22]} 29. Rc6 {[%clk 0:00:14]}  Qxc6 {[%clk 0:00:18]} 0-1


[Site "https://www.chess.com"]

[Event "Titled Tuesday Blitz August 02 Late 2022"]
[White "Wieczorek, Oskar"]
[Black "Djordjevic, Vuk"]
[WhiteFideId "1133950"]
[BlackFideId "902098"]
[WhiteElo "2330"]
[BlackElo "2456"]
[Result "1-0"]
[Round "09"]
[TimeControl "180+1"]
[Date "2022.08.02"]
[WhiteClock "0:00:01"]
[BlackClock "0:00:02"]

1. e4 {[%clk 0:01:54]}  e6 {[%clk 0:02:56]} 2. d4 {[%clk 0:01:54]}  d5 {[%clk 0:02:56]} 3. Nd2 {[%clk 0:01:54]}  Be7 {[%clk 0:02:56]} 4. Bd3 {[%clk 0:01:50]}  c5 {[%clk 0:02:55]} 5. dxc5 {[%clk 0:01:50]}  Nf6 {[%clk 0:02:54]} 6. Ngf3 {[%clk 0:01:51]}  a5 {[%clk 0:02:53]} 7. Qe2 {[%clk 0:01:51]}  O-O {[%clk 0:02:52]} 8. O-O {[%clk 0:01:51]}  Na6 {[%clk 0:02:52]} 9. e5 {[%clk 0:01:49]}  Nd7 {[%clk 0:02:52]} 10. c4 {[%clk 0:01:50]}  Naxc5 {[%clk 0:02:44]} 11. Bc2 {[%clk 0:01:48]}  f6 {[%clk 0:02:43]} 12. cxd5 {[%clk 0:01:42]}  exd5 {[%clk 0:02:42]} 13. exf6 {[%clk 0:01:43]}  Bxf6 {[%clk 0:02:28]} 14. Nb3 {[%clk 0:01:41]}  a4 {[%clk 0:02:17]} 15. Nxc5 {[%clk 0:01:40]}  Nxc5 {[%clk 0:02:18]} 16. Be3 {[%clk 0:01:40]}  b6 {[%clk 0:02:12]} 17. Rfd1 {[%clk 0:01:39]}  Bg4 {[%clk 0:01:57]} 18. Rab1 {[%clk 0:01:29]}  d4 {[%clk 0:01:13]} 19. h3 {[%clk 0:01:22]}  Bxf3 {[%clk 0:01:13]} 20. Qxf3 {[%clk 0:01:18]}  d3 {[%clk 0:01:12]} 21. Bxd3 {[%clk 0:00:58]}  Nxd3 {[%clk 0:00:55]} 22. Qe4 {[%clk 0:00:58]}  Re8 {[%clk 0:00:50]} 23. Qxd3 {[%clk 0:00:50]}  Qxd3 {[%clk 0:00:50]} 24. Rxd3 {[%clk 0:00:51]}  b5 {[%clk 0:00:51]} 25. b3 {[%clk 0:00:50]}  a3 {[%clk 0:00:47]} 26. b4 {[%clk 0:00:26]}  Rec8 {[%clk 0:00:40]} 27. Bc5 {[%clk 0:00:25]}  Ra4 {[%clk 0:00:38]} 28. Rbb3 {[%clk 0:00:22]}  Bb2 {[%clk 0:00:36]} 29. Rd7 {[%clk 0:00:22]}  Ra6 {[%clk 0:00:23]} 30. Rb7 {[%clk 0:00:08]}  Re6 {[%clk 0:00:23]} 31. Rxb5 {[%clk 0:00:07]}  Re1+ {[%clk 0:00:23]} 32. Kh2 {[%clk 0:00:08]}  Ra1 {[%clk 0:00:20]} 33. Ra5 {[%clk 0:00:08]}  Rxa2 {[%clk 0:00:19]} 34. Ra7 {[%clk 0:00:03]}  Ra1 {[%clk 0:00:13]} 35. f4 {[%clk 0:00:04]}  Bc1 {[%clk 0:00:12]} 36. Rg3 {[%clk 0:00:03]}  Bxf4 {[%clk 0:00:11]} 37. Rxg7+ {[%clk 0:00:02]}  Kh8 {[%clk 0:00:11]} 38. Bd4 {[%clk 0:00:02]}  Rh1+ {[%clk 0:00:03]} 39. Kxh1 {[%clk 0:00:02]}  h6 {[%clk 0:00:02]} 40. R7g4+ {[%clk 0:00:01]} 1-0


[Site "https://www.chess.com"]

[Event "Titled Tuesday Blitz August 02 Late 2022"]
[White "Wu, Rochelle"]
[Black "Perez Leiva, Jerzy Jesus"]
[WhiteFideId "30908132"]
[BlackFideId "3524337"]
[WhiteElo "2168"]
[BlackElo "2287"]
[Result "0-1"]
[Round "09"]
[TimeControl "180+1"]
[Date "2022.08.02"]
[WhiteClock "0:01:06"]
[BlackClock "0:00:50"]

1. d4 {[%clk 0:02:59]}  d5 {[%clk 0:02:52]} 2. c4 {[%clk 0:02:57]}  e6 {[%clk 0:02:50]} 3. Nc3 {[%clk 0:02:48]}  Be7 {[%clk 0:02:45]} 4. cxd5 {[%clk 0:02:48]}  exd5 {[%clk 0:02:45]} 5. Nf3 {[%clk 0:02:45]}  c6 {[%clk 0:02:40]} 6. Bf4 {[%clk 0:02:45]}  Nd7 {[%clk 0:02:37]} 7. e3 {[%clk 0:02:46]}  Nf8 {[%clk 0:02:37]} 8. Bd3 {[%clk 0:02:46]}  Ne6 {[%clk 0:02:37]} 9. Bg3 {[%clk 0:02:46]}  h5 {[%clk 0:02:37]} 10. h4 {[%clk 0:02:45]}  Bd6 {[%clk 0:02:15]} 11. Bxd6 {[%clk 0:02:43]}  Qxd6 {[%clk 0:02:16]} 12. Qc2 {[%clk 0:02:42]}  Nf6 {[%clk 0:02:15]} 13. Ne5 {[%clk 0:02:40]}  Ng4 {[%clk 0:02:09]} 14. Nxg4 {[%clk 0:02:34]}  hxg4 {[%clk 0:02:10]} 15. Bf5 {[%clk 0:02:32]}  g3 {[%clk 0:02:10]} 16. f3 {[%clk 0:02:30]}  Qe7 {[%clk 0:01:58]} 17. O-O-O {[%clk 0:02:10]}  Rxh4 {[%clk 0:01:55]} 18. Rxh4 {[%clk 0:02:04]}  Qxh4 {[%clk 0:01:56]} 19. e4 {[%clk 0:02:05]}  dxe4 {[%clk 0:01:25]} 20. fxe4 {[%clk 0:01:59]}  g6 {[%clk 0:01:24]} 21. Bxe6 {[%clk 0:01:58]}  Bxe6 {[%clk 0:01:24]} 22. d5 {[%clk 0:01:59]}  cxd5 {[%clk 0:01:24]} 23. exd5 {[%clk 0:01:59]}  Qf4+ {[%clk 0:01:24]} 24. Kb1 {[%clk 0:01:59]}  Bf5 {[%clk 0:01:24]} 25. Re1+ {[%clk 0:01:42]}  Kf8 {[%clk 0:01:22]} 26. Ne4 {[%clk 0:01:42]}  Re8 {[%clk 0:01:18]} 27. Qc5+ {[%clk 0:01:42]}  Kg8 {[%clk 0:01:18]} 28. Ka1 {[%clk 0:01:39]}  Bxe4 {[%clk 0:01:11]} 29. Qb5 {[%clk 0:01:27]}  Rc8 {[%clk 0:01:08]} 30. a4 {[%clk 0:01:14]}  Bxg2 {[%clk 0:00:50]} 31. Qxb7 {[%clk 0:01:06]}  Rc1+ {[%clk 0:00:50]} 0-1


[Site "https://www.chess.com"]

[Event "Titled Tuesday Blitz August 02 Late 2022"]
[White "Andreikin, Dmitry"]
[Black "Rasulov, Vugar"]
[WhiteFideId "4158814"]
[BlackFideId "13402390"]
[WhiteElo "2736"]
[BlackElo "2523"]
[Result "1-0"]
[Round "10"]
[TimeControl "180+1"]
[Date "2022.08.02"]
[WhiteClock "0:00:20"]
[BlackClock "0:00:02"]

1. d4 {[%clk 0:03:00]}  d5 {[%clk 0:03:00]} 2. c4 {[%clk 0:03:01]}  c6 {[%clk 0:03:00]} 3. Nf3 {[%clk 0:03:02]}  Nf6 {[%clk 0:03:01]} 4. Qc2 {[%clk 0:03:02]}  e6 {[%clk 0:02:59]} 5. g3 {[%clk 0:03:00]}  Nbd7 {[%clk 0:02:57]} 6. Bg2 {[%clk 0:02:59]}  Be7 {[%clk 0:02:56]} 7. O-O {[%clk 0:02:59]}  O-O {[%clk 0:02:57]} 8. Nbd2 {[%clk 0:02:54]}  b6 {[%clk 0:02:52]} 9. e4 {[%clk 0:02:54]}  Ba6 {[%clk 0:02:49]} 10. e5 {[%clk 0:02:52]}  Ne8 {[%clk 0:02:49]} 11. Rd1 {[%clk 0:02:52]}  Rc8 {[%clk 0:02:48]} 12. b3 {[%clk 0:02:45]}  c5 {[%clk 0:02:39]} 13. Bb2 {[%clk 0:02:46]}  cxd4 {[%clk 0:02:36]} 14. Bxd4 {[%clk 0:02:40]}  Qc7 {[%clk 0:02:25]} 15. Rac1 {[%clk 0:02:37]}  b5 {[%clk 0:02:09]} 16. c5 {[%clk 0:02:05]}  b4 {[%clk 0:01:52]} 17. h4 {[%clk 0:01:49]}  h6 {[%clk 0:01:42]} 18. a3 {[%clk 0:01:44]}  bxa3 {[%clk 0:01:40]} 19. b4 {[%clk 0:01:44]}  Qb8 {[%clk 0:01:26]} 20. Qa4 {[%clk 0:01:39]}  Bb5 {[%clk 0:01:23]} 21. Qxa3 {[%clk 0:01:39]}  Nc7 {[%clk 0:01:22]} 22. Re1 {[%clk 0:01:09]}  Qb7 {[%clk 0:01:11]} 23. Nb3 {[%clk 0:01:05]}  Nb8 {[%clk 0:01:11]} 24. Na5 {[%clk 0:01:04]}  Qa8 {[%clk 0:01:07]} 25. Ra1 {[%clk 0:01:03]}  Nc6 {[%clk 0:01:04]} 26. Bc3 {[%clk 0:00:56]}  Nxa5 {[%clk 0:00:55]} 27. Qxa5 {[%clk 0:00:56]}  Bc4 {[%clk 0:00:34]} 28. Nd4 {[%clk 0:00:52]}  a6 {[%clk 0:00:35]} 29. Bf1 {[%clk 0:00:50]}  Bxf1 {[%clk 0:00:34]} 30. Rxf1 {[%clk 0:00:49]}  Qb7 {[%clk 0:00:32]} 31. Bd2 {[%clk 0:00:47]}  Ra8 {[%clk 0:00:28]} 32. Qb6 {[%clk 0:00:38]}  Rfb8 {[%clk 0:00:23]} 33. Nc6 {[%clk 0:00:32]}  Qxb6 {[%clk 0:00:07]} 34. cxb6 {[%clk 0:00:33]}  Rxb6 {[%clk 0:00:08]} 35. Nxe7+ {[%clk 0:00:33]}  Kf8 {[%clk 0:00:09]} 36. Rfc1 {[%clk 0:00:33]}  Nb5 {[%clk 0:00:06]} 37. Nc8 {[%clk 0:00:33]}  Rbb8 {[%clk 0:00:05]} 38. Nd6 {[%clk 0:00:33]}  Nd4 {[%clk 0:00:05]} 39. Rd1 {[%clk 0:00:28]}  Nf3+ {[%clk 0:00:04]} 40. Kg2 {[%clk 0:00:27]}  Nxd2 {[%clk 0:00:05]} 41. Rxd2 {[%clk 0:00:28]}  Rxb4 {[%clk 0:00:06]} 42. Rc2 {[%clk 0:00:28]}  Kg8 {[%clk 0:00:02]} 43. Rc7 {[%clk 0:00:26]}  f6 {[%clk 0:00:02]} 44. exf6 {[%clk 0:00:24]}  gxf6 {[%clk 0:00:03]} 45. Re7 {[%clk 0:00:24]}  e5 {[%clk 0:00:02]} 46. Nf5 {[%clk 0:00:22]}  d4 {[%clk 0:00:02]} 47. Rc1 {[%clk 0:00:22]}  d3 {[%clk 0:00:01]} 48. Rcc7 {[%clk 0:00:21]}  d2 {[%clk 0:00:01]} 49. Rg7+ {[%clk 0:00:20]}  Kf8 {[%clk 0:00:02]} 50. Rcf7+ {[%clk 0:00:20]}  Ke8 {[%clk 0:00:02]} 51. Nd6+ {[%clk 0:00:20]} 1-0


[Site "https://www.chess.com"]

[Event "Titled Tuesday Blitz August 02 Late 2022"]
[White "Babazada, Khazar"]
[Black "Yoo, Christopher Woojin"]
[WhiteFideId "13413554"]
[BlackFideId "30909694"]
[WhiteElo "2409"]
[BlackElo "2105"]
[Result "1/2-1/2"]
[Round "10"]
[TimeControl "180+1"]
[Date "2022.08.02"]
[WhiteClock "0:00:44"]
[BlackClock "0:00:07"]

1. e4 {[%clk 0:03:00]}  c5 {[%clk 0:02:59]} 2. Nf3 {[%clk 0:03:00]}  e6 {[%clk 0:02:59]} 3. d4 {[%clk 0:02:59]}  cxd4 {[%clk 0:03:00]} 4. Nxd4 {[%clk 0:03:00]}  Nc6 {[%clk 0:03:00]} 5. Nc3 {[%clk 0:02:59]}  Qc7 {[%clk 0:03:00]} 6. Nxc6 {[%clk 0:02:55]}  dxc6 {[%clk 0:02:57]} 7. f4 {[%clk 0:02:50]}  e5 {[%clk 0:02:55]} 8. Qf3 {[%clk 0:02:42]}  exf4 {[%clk 0:02:45]} 9. Bxf4 {[%clk 0:02:43]}  Bd6 {[%clk 0:02:42]} 10. g3 {[%clk 0:02:23]}  Nf6 {[%clk 0:02:31]} 11. Be2 {[%clk 0:02:13]}  O-O {[%clk 0:01:48]} 12. O-O-O {[%clk 0:02:13]}  Be5 {[%clk 0:01:48]} 13. h3 {[%clk 0:02:05]}  Be6 {[%clk 0:01:42]} 14. Bxe5 {[%clk 0:02:01]}  Qxe5 {[%clk 0:01:43]} 15. Qf4 {[%clk 0:02:02]}  Nd7 {[%clk 0:01:43]} 16. Bc4 {[%clk 0:01:50]}  Rfe8 {[%clk 0:01:04]} 17. Bxe6 {[%clk 0:01:46]}  Qxe6 {[%clk 0:01:03]} 18. Rd6 {[%clk 0:01:46]}  Qe7 {[%clk 0:01:02]} 19. Rhd1 {[%clk 0:01:43]}  Ne5 {[%clk 0:01:02]} 20. Ne2 {[%clk 0:01:41]}  f6 {[%clk 0:00:58]} 21. g4 {[%clk 0:01:37]}  Rad8 {[%clk 0:00:55]} 22. Rxd8 {[%clk 0:01:18]}  Rxd8 {[%clk 0:00:56]} 23. Rxd8+ {[%clk 0:01:19]}  Qxd8 {[%clk 0:00:57]} 24. b3 {[%clk 0:01:19]}  Qe7 {[%clk 0:00:49]} 25. Kb2 {[%clk 0:01:18]}  Nf7 {[%clk 0:00:43]} 26. Qb8+ {[%clk 0:01:13]}  Nd8 {[%clk 0:00:43]} 27. Nc3 {[%clk 0:01:05]}  a6 {[%clk 0:00:40]} 28. h4 {[%clk 0:01:03]}  Kf7 {[%clk 0:00:39]} 29. Qc8 {[%clk 0:00:59]}  Ne6 {[%clk 0:00:36]} 30. e5 {[%clk 0:01:00]}  fxe5 {[%clk 0:00:25]} 31. Ne4 {[%clk 0:01:00]}  h5 {[%clk 0:00:25]} 32. gxh5 {[%clk 0:00:54]}  Qxh4 {[%clk 0:00:24]} 33. Nd6+ {[%clk 0:00:50]}  Kf6 {[%clk 0:00:23]} 34. Qd7 {[%clk 0:00:46]}  Qd4+ {[%clk 0:00:08]} 35. Kb1 {[%clk 0:00:46]}  Qd1+ {[%clk 0:00:08]} 36. Kb2 {[%clk 0:00:46]}  Qd4+ {[%clk 0:00:09]} 37. Ka3 {[%clk 0:00:44]}  Qc5+ {[%clk 0:00:09]} 38. Kb2 {[%clk 0:00:44]}  Qd4+ {[%clk 0:00:07]} 1/2-1/2


[Site "https://www.chess.com"]

[Event "Titled Tuesday Blitz August 02 Late 2022"]
[White "Bortnyk, Olexandr"]
[Black "Nakamura, Hikaru"]
[WhiteFideId "14120828"]
[BlackFideId "2016192"]
[WhiteElo "2723"]
[BlackElo "2850"]
[Result "1-0"]
[Round "10"]
[TimeControl "180+1"]
[Date "2022.08.02"]
[WhiteClock "0:00:04"]
[BlackClock "0:00:32"]

1. e4 {[%clk 0:03:00]}  e5 {[%clk 0:02:58]} 2. Bc4 {[%clk 0:03:00]}  Nf6 {[%clk 0:02:58]} 3. d3 {[%clk 0:03:01]}  c6 {[%clk 0:02:59]} 4. Nf3 {[%clk 0:03:01]}  d5 {[%clk 0:02:59]} 5. Bb3 {[%clk 0:03:01]}  Bb4+ {[%clk 0:02:59]} 6. Bd2 {[%clk 0:03:02]}  Bxd2+ {[%clk 0:03:00]} 7. Nbxd2 {[%clk 0:03:03]}  a5 {[%clk 0:02:59]} 8. a3 {[%clk 0:03:01]}  Nbd7 {[%clk 0:02:59]} 9. Qe2 {[%clk 0:02:56]}  a4 {[%clk 0:02:58]} 10. Ba2 {[%clk 0:02:56]}  O-O {[%clk 0:02:59]} 11. Nf1 {[%clk 0:02:52]}  Re8 {[%clk 0:02:57]} 12. Ng3 {[%clk 0:02:52]}  Nf8 {[%clk 0:02:55]} 13. O-O-O {[%clk 0:02:46]}  Ng6 {[%clk 0:02:48]} 14. Qd2 {[%clk 0:02:27]}  h6 {[%clk 0:02:40]} 15. h3 {[%clk 0:01:56]}  Be6 {[%clk 0:02:39]} 16. Kb1 {[%clk 0:01:41]}  b5 {[%clk 0:02:35]} 17. Rhe1 {[%clk 0:01:21]}  Qd7 {[%clk 0:02:10]} 18. exd5 {[%clk 0:01:01]}  Bxd5 {[%clk 0:02:11]} 19. Bxd5 {[%clk 0:01:00]}  cxd5 {[%clk 0:02:08]} 20. d4 {[%clk 0:00:54]}  e4 {[%clk 0:02:02]} 21. Ne5 {[%clk 0:00:41]}  Nxe5 {[%clk 0:02:02]} 22. dxe5 {[%clk 0:00:42]}  Rxe5 {[%clk 0:02:03]} 23. Ne2 {[%clk 0:00:25]}  Rc8 {[%clk 0:01:56]} 24. g4 {[%clk 0:00:24]}  Nh7 {[%clk 0:01:49]} 25. Nd4 {[%clk 0:00:24]}  Ng5 {[%clk 0:01:49]} 26. f4 {[%clk 0:00:24]}  e3 {[%clk 0:01:30]} 27. Qd3 {[%clk 0:00:25]}  Nxh3 {[%clk 0:01:06]} 28. fxe5 {[%clk 0:00:24]}  Nf2 {[%clk 0:01:06]} 29. Qf5 {[%clk 0:00:22]}  Qxf5 {[%clk 0:01:07]} 30. Nxf5 {[%clk 0:00:23]}  Nxd1 {[%clk 0:01:03]} 31. Ne7+ {[%clk 0:00:22]}  Kf8 {[%clk 0:01:04]} 32. Nxc8 {[%clk 0:00:23]}  Nf2 {[%clk 0:01:04]} 33. Rxe3 {[%clk 0:00:20]}  Nxg4 {[%clk 0:01:04]} 34. Re2 {[%clk 0:00:21]}  h5 {[%clk 0:01:03]} 35. Nb6 {[%clk 0:00:20]}  h4 {[%clk 0:01:01]} 36. Rg2 {[%clk 0:00:13]}  Nxe5 {[%clk 0:01:00]} 37. Nxd5 {[%clk 0:00:13]}  f6 {[%clk 0:00:56]} 38. Rh2 {[%clk 0:00:12]}  g5 {[%clk 0:00:55]} 39. Nxf6 {[%clk 0:00:12]}  Kf7 {[%clk 0:00:56]} 40. Ne4 {[%clk 0:00:11]}  Kg6 {[%clk 0:00:56]} 41. b3 {[%clk 0:00:09]}  Kf5 {[%clk 0:00:53]} 42. Nf2 {[%clk 0:00:04]}  Kf4 {[%clk 0:00:52]} 43. Rh3 {[%clk 0:00:04]}  Nf3 {[%clk 0:00:49]} 44. bxa4 {[%clk 0:00:02]}  bxa4 {[%clk 0:00:50]} 45. Kc1 {[%clk 0:00:02]}  g4 {[%clk 0:00:49]} 46. Rh1 {[%clk 0:00:01]}  Kg3 {[%clk 0:00:47]} 47. Ne4+ {[%clk 0:00:01]}  Kf4 {[%clk 0:00:46]} 48. Nd2 {[%clk 0:00:02]}  Ne5 {[%clk 0:00:41]} 49. Rxh4 {[%clk 0:00:01]}  Ke3 {[%clk 0:00:34]} 50. Rh5 {[%clk 0:00:02]}  Nc6 {[%clk 0:00:34]} 51. Rg5 {[%clk 0:00:02]}  Kf4 {[%clk 0:00:34]} 52. Rg8 {[%clk 0:00:02]}  g3 {[%clk 0:00:34]} 53. c4 {[%clk 0:00:03]}  Nd4 {[%clk 0:00:34]} 54. c5 {[%clk 0:00:03]}  Ne6 {[%clk 0:00:30]} 55. c6 {[%clk 0:00:03]}  Ng5 {[%clk 0:00:31]} 56. c7 {[%clk 0:00:02]}  g2 {[%clk 0:00:32]} 57. Rxg5 {[%clk 0:00:03]}  Kxg5 {[%clk 0:00:32]} 58. Nf3+ {[%clk 0:00:04]} 1-0


[Site "https://www.chess.com"]